Cogmind - Beta 12 @@@ ROGUE MODE // 2023.04.30 @ 06:00:02 // Winter2019/RPGLIKE Player: Benkyo Result: Destroyed by as-72179 with Assembled Heavy Rifle Performance ------------- Evolutions (0) 0 Regions Visited (2) 400 Robots Destroyed (38) 190 Value Destroyed (1027) 1027 Prototype IDs (2) 40 Alien Tech Used (0) 0 Bonus (18) 18 TOTAL SCORE: 1675 Bonus ------- High Alert Combat Kills 18 Cogmind --------- Core Integrity 0/600 Matter 230/300 Energy 265/265 System Corruption 0% Temperature Cool (0) Movement Rolling (80) Location -10/Mines Parts ------- > --- POWER (1) -------- Improved Ion Engine > --- PROPULSION (2) --- Wheel Wheel > --- UTILITY (4) ------ Cooling System Structural Scanner Improved Terrain Scanner Hacking Suite > --- WEAPON (2) ------- Assault Rifle Light Cannon > --- INVENTORY (2) ---- Protomatter-43 Protomatter-37 Peak State ------------ > --- POWER ------------ Improved Ion Engine > --- PROPULSION ------- Wheel Wheel > --- UTILITY ---------- Cooling System Structural Scanner Improved Terrain Scanner Hacking Suite > --- WEAPON ----------- Assault Rifle Light Cannon > --- INVENTORY -------- Protomatter Protomatter [Rating: 15] Favorites ----------- Power Improved Ion Engine Engine Improved Ion Engine Propulsion Wheel Wheel Wheel Utility Improved Terrain Scanner Device Improved Terrain Scanner Hackware Hacking Suite Weapon Light Assault Rifle Ballistic Gun Light Assault Rifle Ballistic Cannon Light Cannon Build | -11 -10 -10 ------- Run | Jun Mat Min Slots Evolved 5 | 3 2 . Power . | . . . Propulsion 1 | 1 . . Utility 3 | 1 2 . Weapon 1 | 1 . . Parts Attached 14 | 8 6 . Power 2 | 1 1 . Engine 2 | 1 1 . Core . | . . . Reactor . | . . . Propulsion 3 | 3 . . Treads . | . . . Leg . | . . . Wheel 3 | 3 . . Hover . | . . . Flight . | . . . Utility 5 | 2 3 . Device 4 | 2 2 . Storage . | . . . Processor . | . . . Hackware 1 | . 1 . Protection . | . . . Artifact . | . . . Weapon 4 | 2 2 . Energy Gun . | . . . Energy Cannon . | . . . Ballistic Gun 3 | 2 1 . Ballistic Cannon 1 | . 1 . Launcher . | . . . Special Weapon . | . . . Impact Weapon . | . . . Slashing Weapon . | . . . Piercing Weapon . | . . . Special Melee Weapon . | . . . Unidentified Prototypes . | . . . Parts Lost . | . . . Power . | . . . Propulsion . | . . . Utility . | . . . Weapon . | . . . Highest Loss Streak . | . . . To Critical Strikes . | . . . Average Slot Usage (%) 98 | . 97 100 Engine 12 | . 12 11 Wheel 24 | . 24 22 Device 32 | . 31 33 Hackware 4 | . 2 11 Ballistic Gun 16 | . 17 11 Ballistic Cannon 7 | . 7 11 Naked Turns . | . . . Heaviest Build 16 | 9 16 16 Greatest Support 26 | 26 20 20 Greatest Overweight (x) 1 | 1 . . Average Overweight (x) . | . . . Largest Inventory Capacity 2 | 1 2 2 Average Capacity 1 | . 1 2 Most Carried 2 | 1 2 2 Average Carried 1 | . 1 2 Final Capacity 2 | 1 2 2 Final Carried 2 | 1 2 2 Class Distribution -------------------- 65% | Mutant 34% | Scavenger-Mutant Dominant Class ---------------- Mutant | -10/Materials Scavenger-Mutant | -10/Mines Resources | -11 -10 -10 ----------- Run | Jun Mat Min Matter Collected 885 | 300 515 70 Remotely . | . . . Salvage Created 840 | 131 572 137 Parts 78 | 7 64 7 Haulers Intercepted 2 | . 2 . Recyclers Shooed 1 | 1 . . Parts Field Recycled . | . . . Retrieved Matter . | . . . Parts Self-Destructed . | . . . Prevented . | . . . Kills | -11 -10 -10 ------- Run | Jun Mat Min Combat Hostiles Destroyed 29 | . 22 7 Guns 21 | . 17 4 Cannons 8 | . 5 3 Classes Destroyed 11 | 2 7 2 Worker 2 | . 1 1 Builder 1 | . 1 . Tunneler 2 | 2 . . Hauler 2 | . 2 . Recycler 1 | 1 . . Operator 2 | . 2 . Watcher 3 | . 3 . Swarmer 9 | . 9 . Grunt 15 | . 13 2 Demolisher 1 | . . 1 Assembled 4 | . . 4 Best Kill Streak 5 | 2 4 5 Combat Bots Only 5 | . 3 5 Max Kills in Single Turn 1 | 1 1 1 Gunslinging . | . . . Exploded . | . . . Melee . | . . . Uniques/NPCs Destroyed . | . . . Combat | -11 -10 -10 -------- Run | Jun Mat Min Damage Taken 1305 | . 536 769 Core 1078 | . 432 646 Absorbed by Shields . | . . . Redirected to Core 746 | . 313 433 Core Remaining (%) 100 | 100 . . Volleys Fired 157 | 10 125 22 Largest 2 | 2 2 2 Hottest 55 | 40 55 55 Shots Fired 264 | 20 206 38 Gun 173 | 20 137 16 Cannon 91 | . 69 22 Launcher . | . . . Special . | . . . Kinetic 264 | 20 206 38 Thermal . | . . . Explosive . | . . . Electromagnetic . | . . . Robot Hit Streak 16 | 11 16 10 Robot Miss Streak 3 | 2 3 1 Penetration Max . | . . . Secondary Targets 1 | . 1 . Max Gunslinging Chain 1 | . 1 . Shots Hit Robots 162 | 16 123 23 Core Hits 70 | 6 52 12 Critical Kills 1 | . 1 . Critical Parts Destroyed 1 | . 1 . Critical Strikes 2 | . 2 . Destroy 2 | . 2 . Melee Attacks . | . . . Impact . | . . . Slashing . | . . . Piercing . | . . . Sneak Attacks . | . . . Combat Hostiles . | . . . Follow-up Attacks . | . . . Damage Inflicted 1786 | 128 1262 396 Guns 1226 | 128 931 167 Cannons 560 | . 331 229 Explosions . | . . . Melee . | . . . Ramming . | . . . Kinetic 1786 | 128 1262 396 Thermal . | . . . Explosive . | . . . Electromagnetic . | . . . Impact . | . . . Slashing . | . . . Piercing . | . . . Highest Corruption . | . . . Average Corruption . | . . . Corruption Purged . | . . . Corruption Blocked . | . . . Overload Shots . | . . . Overflow Damage 11 | . . 11 Projectiles 11 | . . 11 Explosions . | . . . Melee . | . . . Knockbacks 4 | . 1 3 Impact . | . . . Kinetic 4 | . 1 3 Secondary . | . . . Self-Inflicted Damage . | . . . Shots . | . . . Rammed . | . . . Targets Rammed . | . . . Kicked . | . . . Crushed . | . . . Highest Temperature 12 | . 12 . Average Temperature 6 | . 6 . Received Heat Transfer 230 | . 180 50 Siege Activations . | . . . Robots Corrupted . | . . . Combat Hostiles . | . . . Parts Fried . | . . . Impact Corruptions . | . . . Robots Melted . | . . . Combat Hostiles . | . . . Parts Melted . | . . . Heat Transferred . | . . . Parts Sabotaged . | . . . Parts Stolen . | . . . Parts Stripped . | . . . Power Chain Reactions . | . . . Missiles Intercepted . | . . . Alert | -11 -10 -10 ------- Run | Jun Mat Min Peak Influence 727 | 15 727 356 Initial 251 | . 9 251 Average 339 | 6 370 304 Maximum Alert Level 3 | . 3 1 Low Security (%) 17 | 100 16 . Level 1 49 | . 41 100 Level 2 31 | . 40 . Level 3 1 | . 1 . Level 4 . | . . . Level 5 . | . . . High Security . | . . . Max Security . | . . . Squads Dispatched 7 | . 7 . Investigation 5 | . 5 . Extermination . | . . . Reinforcement 2 | . 2 . Assault . | . . . Garrison . | . . . Intercept . | . . . Searches Triggered . | . . . Construction Impeded . | . . . Haulers Reinforced . | . . . Active Scanning Responses . | . . . Cargo Convoy Interrupts . | . . . Stealth | -11 -10 -10 --------- Run | Jun Mat Min Distress Signals 2 | . 2 . Communications Jammed . | . . . Distress Signals . | . . . Times Spotted 39 | . 28 11 Peak Tracking Total 7 | . 4 7 Tactical Retreats 3 | . 3 . Traps | -11 -10 -10 ------- Run | Jun Mat Min Traps Triggered 1 | . 1 . Indirectly . | . . . Trap Hack Attempts . | . . . Triggered . | . . . Disarmed . | . . . Reprogrammed . | . . . Reused . | . . . Traps Extracted . | . . . Installed . | . . . Triggered . | . . . Machines | -11 -10 -10 ---------- Run | Jun Mat Min Machines Disabled 25 | . 23 2 Max in Single Turn 1 | . 1 1 Machines Repaired . | . . . Machines Sabotaged . | . . . Overloaded Fab Kills . | . . . Hacking | -11 -10 -10 --------- Run | Jun Mat Min Machines Accessed 8 | . 8 . Terminals 7 | . 7 . Fabricators . | . . . Repair Stations . | . . . Recycling Units 1 | . 1 . Scanalyzers . | . . . Garrison Access . | . . . Total Hacks 27 | . 27 . Successful 13 | . 13 . Failed 14 | . 14 . Catastrophic 1 | . 1 . Database Lockouts . | . . . Manual 14 | . 14 . Terminals 25 | . 25 . Fabricators . | . . . Repair Stations . | . . . Recycling Units 2 | . 2 . Scanalyzers . | . . . Garrison Access . | . . . Terminal Hacks 10 | . 10 . Robot Analysis 4 | . 4 . Prototype ID Bank 1 | . 1 . Locate Traps 4 | . 4 . Zone Layout 1 | . 1 . Fabricator Hacks . | . . . Repair Station Hacks . | . . . Recycling Unit Hacks . | . . . Scanalyzer . | . . . Garrison Access Hacks . | . . . Unauthorized Hacks 3 | . 3 . Terminals 2 | . 2 . Assimilate 1 | . 1 . Botnet 1 | . 1 . Fabricators . | . . . Repair Stations . | . . . Recycling Units 1 | . 1 . Tunnel 1 | . 1 . Scanalyzers . | . . . Garrison Access . | . . . Data Cores Recovered . | . . . Used . | . . . Hacking Detections 8 | . 8 . Full Trace Events 6 | . 6 . Feedback Events . | . . . Feedback Blocked . | . . . Robot Schematics Acquired . | . . . Robots Built . | . . . Authchips . | . . . Time . | . . . Total Robot Build Rating . | . . . Part Schematics Acquired . | . . . Parts Built . | . . . Authchips . | . . . Time . | . . . Total Part Build Rating . | . . . Parts Repaired . | . . . Time . | . . . Parts Recycled . | . . . Recycled Matter . | . . . Retrieved Matter . | . . . Retrieved Components . | . . . Parts Scanalyzed . | . . . Part Schematics Acquired . | . . . Parts Damaged . | . . . Bothacking | -11 -10 -10 ------------ Run | Jun Mat Min Used RIF Installer . | . . . Robots Hacked . | . . . Non-combat . | . . . Combat . | . . . Robot Hacks Applied . | . . . Relay Couplers Released . | . . . Fabnet Peak Effective % . | . . . Robots Rewired . | . . . Allies Hacked . | . . . Hacks Repelled . | . . . Allies | -11 -10 -10 -------- Run | Jun Mat Min Total Allies . | . . . Largest Group . | . . . Highest-Rated Group . | . . . Highest-Rated Ally . | . . . Total Orders . | . . . Ally Attacks . | . . . Total Damage . | . . . Kills . | . . . Allies Corrupted . | . . . Allies Melted . | . . . Intel | -11 -10 -10 ------- Run | Jun Mat Min Robot Analysis Total 4 | . 4 . Derelict Logs Recovered 1 | . . 1 Drone Launches . | . . . Drone Recoveries . | . . . Exploration | -11 -10 -10 ------------- Run | Jun Mat Min Turns Passed 1656 | 90 1277 289 Spaces Moved 1320 | 56 1005 259 Core 8 | 8 . . Treads . | . . . Legs . | . . . Wheels 1312 | 48 1005 259 Hover . | . . . Flight . | . . . Fastest Speed 50 | 50 80 80 Average Speed 80 | 83 80 80 Slowest Speed 100 | 100 80 80 Overloaded Moves . | . . . Propulsion Burnouts . | . . . Robots Hopped . | . . . Cave-ins Triggered . | . . . Exploration Rate (%) 50 | 4 99 49 Regions Visited 2 Branch Regions 1 Pre-discovered Areas 1 | . 1 . Known Exits Taken . | . . . Unknown Exits Taken 2 | 1 1 . Scrap Searched . | . . . Spaces Dug . | . . . Terrain Destroyed 1 | . . 1 Melee . | . . . Projectile 1 | . . 1 AOE . | . . . Terrain Rammed . | . . . Walls Destroyed . | . . . Machines Disabled . | . . . Actions | -11 -10 -10 --------- Run | Jun Mat Min Total 1679 | 80 1295 304 Wait 146 | 3 123 20 Move 1318 | 55 1004 259 Hop . | . . . Pick Up 5 | 2 3 . Fast Attach 13 | 8 5 . Attach . | . . . Detach . | . . . Swap 1 | . 1 . Drop 8 | 2 6 . Fire 157 | 10 125 22 Melee . | . . . Ram . | . . . Kick . | . . . Crush . | . . . Escape Stasis . | . . . Rewire . | . . . Trap . | . . . Miscellaneous 31 | . 28 3 Route ------- -11/Junkyard -10/Materials (discovered 5 exits: [*Mat x3] / [*Min x2]) -10/Mines (discovered 2 exits: [*Mat] / [*Exi]) History --------- Turn | Location | Event 7 | -11/Junkyard | Discovered new exit (range 16) 8 | -11/Junkyard | Upgraded with Propulsion slot (x1) 8 | -11/Junkyard | Upgraded with Utility slot (x1) 8 | -11/Junkyard | Upgraded with Weapon slot (x1) 91 | -11/Junkyard | Entered Materials 321 | -10/Materials | Build established: Mutant 357 | -10/Materials | Discovered new exit (range 13) 468 | -10/Materials | Discovered new exit (range 13) 468 | -10/Materials | Discovered new exit (range 14) 500 | -10/Materials | Reached level 2 517 | -10/Materials | Discovered new exit (range 5) 533 | -10/Materials | Upgraded with Utility slot (x1) 682 | -10/Materials | Discovered new exit (range 14) 911 | -10/Materials | Reached level 3 913 | -10/Materials | Upgraded with Utility slot (x1) 1272 | -10/Materials | Reached level 4 1368 | -10/Materials | Entered Mines 1381 | -10/Mines | Learned Materials stockpile data 1383 | -10/Mines | Discovered new exit (range 4) 1387 | -10/Mines | Build established: Scavenger-Mutant 1458 | -10/Mines | Deemed a non-threat by the Exiles lab entrance 1458 | -10/Mines | Discovered new exit (range 5) 1537 | -10/Mines | A weapon hastily lodged in a ceiling crevice suddenly fell to the ground 1579 | -10/Mines | Assembled infested the area 1639 | -10/Mines | Core integrity fell below 50% 1648 | -10/Mines | Core integrity fell below 20% 1657 | -10/Mines | Destroyed by as-72179 with Assembled Heavy Rifle Last Messages --------------- 01641_ U-05 Engineer builds a Wall. 01642_ The unstable cave ceiling collapses. 01642_ U-05 Engineer builds a Wall. 01643_ The unstable cave ceiling collapses. 01643_ 1 Matter crushed. 01644_ as-53697 destroyed. 01645_ The unstable cave ceiling collapses. 01646_ U-05 Engineer lays Concrete. 01647_ U-05 Engineer builds a Wall. 01648_ U-05 Engineer lays Concrete. 01650_ as-76357 destroyed. 01650_ U-05 Engineer lays Concrete. 01653_ as-83188 knocked back. 01653_ U-05 Engineer lays Concrete. 01653_ R-06 Scavenger collects Lgt. Nuclear Core. 01654_ as-99933 destroyed. 01654_ Knocked back. 01654_ U-05 Engineer lays Concrete. 01656_ as-83188 destroyed. 01656_ U-05 Engineer lays Concrete. Map ----- +----------------------------------------------------+ | ????????????#?#####????????????#??########??#????? | | ????????????#?#######????????????#### ##########? | | ??????????????# ###?????????????## |#########? | | ??????????###### ###????????????## ##? | | #????????#####?## ####??#????????### ###? | | ????????### <#?## ####??????????#### ######## | | ###?????### #??## ###???????????#### ######### | | ####???### #??### ##??????#?????#### ## # | | ####??### ####?## ##???#??#??####### ## """ # | | ####?## ######## ################### ## """ # | | ###?### ##?### ############### "" # | | ##?##### ###### ####### """ # | | ##??#### ###### ####################### # | | ###??#### ### ##################?????####### | | ####????## ### ##########????????????????####### | | #####??#??## ### ##########?????????#????????????? | | ####?#????## ### ## ##??????????????????????? | | #???????#?## # # ##??#??#?#??????????#???? | | ##?????#??## # """" ##?#????????????#???????? | | ###??##?#### # k # "" ##?#????????#???????????? | | ###?#??##### # " ############????????????? | | ###?##### # ## ######### ##????????????? | | ######## ## ## #% ###??? ????????? | | ###### #%% ###????????????? | | ## % ru t % ##????????????? | | ## u @%%%%a ###????????????? | | ### ## ## %## ###????????????? | | ####### ## ##????????????? | | ######### ### ### # ## ????????????? | | #####?######## ###### ## ?????????????? | | ###?????####### ##?### ?????????????? | | #####???????#??##########??????? ?????????????? | | ####???????????##########???????? ???????????? | | ##???#????#??????#?#?????????????? = ??????????? | | ##??????????????##?????????????????%???????????? | | ##?????#?#???????????#??#??????????????????????? | | #####?????????#?????????#??????????????????????? | | ###?????????#??????#??????#?????????????????? | | ##?????????????????????????#???????????????? | | #???????????????#???#?????????????????????? | | ?????????????????????????????????????????? | | ### ??????????????????????????????????????????? | | #####???????????????????????????????????????????? | | ####?????????????????????????????????????????????? | | ###??????????????????????????????????????????????? | | ##???????????????????????????????????????????????? | | #????????????????????????????????????????????????? | | ?????????????????????????????????????????????????? | | ?????????????????????????????????????????????????? | | ?????????????????????????????????????????????????? | +----------------------------------------------------+ Best States ------------- Heat Dissipation 47 Energy Generation 12 Energy Capacity 265 Matter Stores 300 Matter Capacity 300 Sight Range 16 Robot Scan Range 8 Terrain Scan Range 16 Terrain Scan Density 10 Evasion (%) 44 Offensive Hacking 10 Item Schematics ----------------- None Robot Schematics ------------------ None Fabricated ------------ Nothing Alien Tech Used ----------------- None Achievements -------------- None Challenges ------------ None RPGLIKE | -11 -10 -10 --------- Run | Jun Mat Min Levels Raised 3 | . 3 . XP Earned 8789 | 3000 4789 1000 XP Spent 7500 | 3000 4500 . Upgrades 16 | 10 6 . Propulsion Slot 1 | 1 . . Utility Slot 3 | 1 2 . Weapon Slot 1 | 1 . . Inventory Capacity 2 | 1 1 . Sensor Range 4 | 4 . . Ranged Accuracy 5 | 2 3 . Protomatter Created 380 | . 332 48 Integrity Restored 603 | . 547 56 Core 475 | . 432 43 Parts 128 | . 115 13 Protomatter Decayed 62 | . 62 . Game ------ Seed UltimateLatentChip Manual? 0 Play Time 01:08:59 Cumulative 475.5 hours Start 2023.04.29 @ 18:27:31 End 2023.04.30 @ 06:00:02 Sessions 1 Manual Loads 0 Difficulty Rogue Special Mode Winter2019/RPGLIKE Game No. 89 Rogue 82 Adventurer 1 Explorer 6 Win Type - Total 37 Types 11/3/12/1/1/1/6/1/1 Lore% 92 Gallery% 92 Achievement% 83 Wizard Run 0 Options --------- ASCII 0 Keyboard 0 Movement Mouse Keybinds 0 Fullscreen 1 Font 18/SmallcapsGlow Map View 76x50 Tactical HUD 1 Map Filters NONE Filters NONE Steam 1 RUN: 78c151da-7056-4d24-82d7-8a14c7908719